bitfinex/quotes_ETHUSD_20250623
["timestamp","ask_amount","ask_price","bid_price","bid_amount"]
[1750713740050,0.781,2361.4,2360.3,6.27566465]
[1750713740236,0.781,2361.4,2360.4,10.0]
[1750713740436,0.781,2361.4,2360.5,0.55]
[1750713740638,1.13475725,2361.4,2360.5,2.23256647]
[1750713741234,1.13475725,2361.4,2360.5,6.46895691]
[1750713741470,1.13475725,2361.4,2360.5,2.23256647]
[1750713741829,1.13475725,2361.4,2360.5,6.46895253]
[1750713742559,0.781,2361.4,2360.5,2.23256647]
[1750713742710,0.781,2361.4,2361.0,0.55]
[1750713743948,0.781,2361.4,2361.0,4.78542688]
[1750713745651,0.781,2361.4,2361.0,0.55]
[1750713745842,0.781,2361.4,2361.0,4.7854744]
[1750713746041,0.781,2361.4,2361.0,5.89069509]
[1750713746568,0.781,2361.4,2361.0,1.65522069]
[1750713746851,0.781,2361.4,2360.8,9.351]
[1750713746852,0.781,2361.4,2360.6,2.032]
[1750713747054,0.781,2361.4,2360.7,0.55]
[1750713748558,1.19971764,2361.4,2360.7,0.55]
[1750713748736,0.8326,2361.3,2360.6,2.032]
[1750713749457,7.86,2361.2,2360.6,2.032]
[1750713750574,7.86,2361.2,2360.7,0.55]
[1750713756589,0.7523,2361.1,2360.6,2.032]
[1750713757757,0.7523,2361.1,2360.7,0.55]
[1750713758919,7.86,2361.2,2361.1,4.78531404]
[1750713759224,0.7675,2361.4,2361.2,0.55]
[1750713759419,0.7675,2361.4,2361.0,4.7854179]
[1750713759721,0.7675,2361.4,2361.0,5.68751803]
[1750713760036,0.7675,2361.4,2361.1,0.55]
[1750713760733,0.7675,2361.4,2361.1,4.78528883]
[1750713760919,10.0,2361.7,2361.1,0.55]
[1750713761124,10.0,2361.7,2360.8,0.55]
[1750713761125,2.20941771,2361.6,2360.8,0.55]
[1750713761325,10.39488548,2361.5,2360.8,0.55]
[1750713761551,0.8039,2361.3,2360.4,4.23643604]
[1750713761749,0.8039,2361.3,2360.3,10.8148]
[1750713761750,1.19882979,2361.2,2360.2,6.26885722]
[1750713761952,10.39492979,2361.1,2360.3,0.55]
[1750713762264,0.39492979,2361.0,2360.1,0.8148]
[1750713762428,1.19882979,2360.9,2360.2,2.032]
[1750713762622,0.39492979,2360.8,2360.1,15.05178658]
[1750713762818,0.39492979,2360.8,2360.1,17.08378658]
[1750713763350,0.39492979,2360.8,2360.2,0.55]
[1750713763513,0.39492979,2360.8,2360.1,12.032]
[1750713763713,0.39492979,2360.8,2360.0,2.032]
[1750713763939,0.39492979,2360.8,2360.1,0.55]
[1750713764134,0.39492979,2360.8,2360.0,2.032]
[1750713764336,1.40753716,2360.8,2360.1,0.55]
[1750713764535,0.39542694,2360.7,2360.1,0.55]
[1750713764936,1.40803431,2360.7,2360.1,0.55]
[1750713765253,0.8131,2360.5,2360.0,0.55]
[1750713766234,0.39598013,2360.4,2360.0,0.55]
[1750713766631,1.40861593,2360.3,2359.9,2.2546823]
[1750713766831,1.01260737,2360.4,2359.9,0.2226823]
[1750713767020,1.40861484,2360.3,2359.9,0.2226823]
[1750713767221,1.01260737,2360.4,2359.9,0.2226823]
[1750713767531,1.40836233,2360.3,2359.9,0.2226823]
[1750713767876,0.39575496,2360.2,2359.9,0.2226823]
[1750713768058,1.01260737,2360.3,2360.0,0.55]
[1750713768361,0.8131,2360.5,2360.0,0.55]
[1750713768540,0.39603576,2360.4,2360.0,5.28828131]
[1750713768857,0.8131,2360.5,2360.0,5.2882609]
[1750713769058,0.39602152,2360.4,2360.0,5.2882609]
[1750713769273,0.39602152,2360.4,2360.0,1.05099903]
[1750713770168,0.8131,2360.5,2360.0,5.2881425]
[1750713770378,1.01403947,2360.7,2360.2,4.78691546]
[1750713770571,0.39587837,2360.6,2360.2,4.78691546]
[1750713771335,0.39587837,2360.6,2360.2,0.55]
[1750713772470,1.01403947,2360.7,2360.4,0.55]
[1750713772640,0.39587629,2360.6,2360.4,0.55]
[1750713772841,1.01403947,2360.8,2360.4,0.55]
[1750713773038,2.97721721,2361.1,2360.4,0.55]
[1750713773039,0.39586926,2360.7,2360.4,0.55]
[1750713773378,1.01403947,2360.9,2360.4,0.55]
[1750713773550,1.40996194,2360.8,2360.4,0.55]
[1750713773754,0.39592247,2360.7,2360.4,0.55]
[1750713773956,1.01403947,2360.8,2360.4,0.55]
[1750713774166,0.39595756,2360.7,2360.4,0.55]
[1750713774338,1.01403947,2360.9,2360.4,0.55]
[1750713774538,1.40998159,2360.8,2360.4,0.55]
[1750713774840,2.97721721,2361.1,2360.4,0.55]
[1750713774841,0.3959422,2360.7,2360.4,0.55]
[1750713775037,1.01403947,2360.9,2360.4,0.55]
[1750713775239,1.409988,2360.8,2360.4,0.55]
[1750713775469,1.41001749,2360.7,2360.4,0.55]
[1750713775680,1.01406896,2361.0,2360.4,0.55]
[1750713775885,1.41006781,2360.9,2360.4,0.55]
[1750713776184,1.41006771,2360.8,2360.4,0.55]
[1750713776339,1.01406896,2360.7,2360.4,0.55]
[1750713776695,0.39613539,2360.6,2360.4,0.55]
[1750713776904,1.01406896,2360.8,2360.4,0.55]
[1750713777111,1.4102049,2360.7,2360.4,0.55]
[1750713777415,1.01406896,2360.9,2360.4,0.55]
[1750713777700,1.01406896,2360.8,2360.4,0.55]
[1750713777915,1.01406896,2360.7,2360.4,0.55]
[1750713778205,1.01406896,2360.9,2360.4,0.55]
[1750713778407,1.01406896,2360.8,2360.4,0.55]
[1750713778557,8.25912862,2361.0,2360.4,0.55]
[1750713778558,1.01406896,2360.7,2360.4,0.55]
[1750713778757,1.01406896,2360.9,2360.4,0.55]
[1750713779003,1.01406896,2360.8,2360.4,0.55]
[1750713779201,1.01406896,2360.7,2360.4,0.55]
[1750713779510,1.01406896,2360.9,2360.4,0.55]
[1750713779804,1.01406896,2360.8,2360.4,4.78656419]
[1750713780004,8.25912862,2361.0,2360.8,4.78585225]
[1750713780005,1.01406896,2361.0,2360.8,4.78585225]
[1750713780157,8.6926,2361.4,2361.2,0.55]
[1750713780158,1.01407943,2361.3,2361.2,0.55]
[1750713780507,7.86,2361.4,2361.2,4.7851022]
[1750713780693,1.01407943,2361.6,2361.5,0.55]
[1750713780899,1.01407943,2362.1,2361.5,1.3501]
[1750713781200,7.86,2362.2,2361.6,4.23433748]
[1750713781409,8.87407943,2362.2,2361.7,0.55]
[1750713781593,7.86,2362.2,2361.7,0.55]
[1750713781898,8.87407943,2362.2,2361.7,4.78422522]
[1750713782106,7.86,2362.2,2361.7,0.55]
[1750713782290,7.86,2362.2,2361.7,3.30417316]
[1750713782490,7.86,2362.2,2361.8,4.23398256]
[1750713782696,7.86,2362.2,2362.0,0.55]
[1750713782873,0.8326,2362.4,2362.0,0.55]
[1750713783622,1.01407943,2362.6,2362.0,0.55]
[1750713783922,0.8036,2362.7,2362.0,5.88590205]
[1750713784088,0.8036,2362.7,2361.7,2.75417316]
[1750713784308,11.81445859,2362.7,2361.8,0.55]
[1750713784506,1.01085859,2362.6,2361.8,0.55]
[1750713784706,0.7578,2362.5,2361.6,9.872]
[1750713786408,0.7578,2362.5,2361.6,2.572]
[1750713787205,10.0,2362.5,2361.6,2.572]
[1750713787520,0.8175,2362.3,2361.6,2.572]
[1750713788024,7.86,2362.2,2361.6,2.572]
[1750713788229,7.86,2362.2,2361.6,0.55]
[1750713789356,8.6775,2362.3,2361.6,0.55]
[1750713789681,8.6775,2362.3,2361.8,0.55]
[1750713793213,7.86,2362.3,2361.8,0.55]
[1750713793532,7.86,2362.3,2362.0,4.78361855]
[1750713793889,8.6343,2362.6,2362.0,4.78361855]
[1750713794984,7.86,2362.6,2362.2,0.55]
[1750713795187,7.86,2362.8,2362.2,0.55]
[1750713795419,7.86,2362.8,2361.9,0.33709]
[1750713795420,7.86,2362.8,2362.0,4.2336113]
[1750713795631,9.72618,2362.8,2362.1,0.55]
[1750713796182,9.72618,2362.8,2361.8,0.55]
[1750713796402,0.7998,2362.7,2361.7,2.8199]
[1750713796604,7.86,2362.6,2361.7,0.7989]
[1750713796816,0.7998,2362.5,2361.5,10.8243]
[1750713796998,1.06808,2362.4,2361.5,12.87942674]
[1750713797199,8.6598,2362.3,2361.3,4.2348696]
[1750713797433,10.0,2362.2,2361.3,4.2348696]
[1750713797592,0.8218,2362.0,2361.2,3.74732838]
[1750713797777,0.8218,2362.0,2361.3,4.23495532]
[1750713797778,7.86,2361.9,2361.3,4.23495532]
[1750713797982,7.86,2361.9,2361.5,0.55]
[1750713798183,7.86,2361.9,2361.7,0.55]
[1750713798685,7.86,2362.5,2361.6,0.7631]
[1750713798889,7.86,2362.5,2361.7,6.80515522]
[1750713799091,7.86,2362.5,2361.8,4.2340524]
[1750713799290,8.6344,2362.6,2362.0,0.55]
[1750713799820,8.6344,2362.6,2362.0,4.78363067]
[1750713800026,7.86,2362.6,2362.2,0.55]
[1750713800520,10.0,2362.8,2362.2,0.55]
[1750713800521,17.86,2362.8,2362.2,0.55]
[1750713803406,7.86,2362.8,2362.5,0.55]
[1750713803741,10.6642,2363.2,2362.6,0.47829633]
[1750713803943,10.6642,2363.2,2362.7,0.8128]
[1750713804452,20.6642,2363.2,2362.7,0.8128]
[1750713804943,10.6642,2363.2,2362.6,0.55]
[1750713805104,20.6642,2363.2,2362.5,0.55]
[1750713805309,20.6642,2363.2,2362.4,0.8073]
[1750713805509,20.6642,2363.2,2362.2,10.0]
[1750713805769,20.6642,2363.2,2362.3,0.55]
[1750713806176,1.00984366,2363.1,2362.3,0.55]
[1750713806465,7.284,2363.0,2362.3,0.55]
[1750713806660,1.00984366,2363.1,2362.3,1.88673]
[1750713806972,8.29284366,2363.1,2362.3,1.88673]
[1750713808125,10.0,2363.0,2362.1,0.8073]
[1750713808338,0.7814,2362.9,2362.2,0.55]
[1750713808539,1.79124366,2362.9,2362.2,4.78331278]
[1750713808738,7.86,2362.8,2362.2,4.78331278]
[1750713809193,7.86,2362.8,2362.2,0.55]
[1750713809371,7.86,2362.8,2362.4,5.53985146]
[1750713809689,7.86,2362.8,2362.6,0.55]
[1750713811741,7.86,2362.8,2362.4,0.7569]
[1750713811947,7.86,2362.8,2362.5,0.55]
[1750713813372,7.86,2362.8,2362.3,0.55]
[1750713814080,0.7687,2362.7,2362.3,0.55]
[1750713815181,0.7687,2362.7,2361.9,6.24376885]
[1750713815182,19.49157,2362.7,2361.9,0.8254]
[1750713815367,1.00984366,2362.6,2361.9,0.8254]
[1750713815951,1.00984366,2362.6,2361.7,15.05960357]
[1750713816281,1.00984366,2362.6,2361.8,0.55]
[1750713816583,1.00984366,2362.6,2361.8,4.78402961]
[1750713816884,1.00984366,2362.6,2361.8,4.78394323]
[1750713817085,1.00984366,2362.6,2362.0,0.55]
[1750713820495,7.86,2362.5,2362.0,0.55]
[1750713822664,7.86,2362.5,2362.2,1.3694]
[1750713823162,8.86984366,2362.6,2362.2,1.3694]
[1750713823363,8.86984366,2362.6,2362.4,0.55]
[1750713823364,7.86,2362.6,2362.4,0.55]
[1750713823570,7.86,2362.9,2362.4,0.55]
[1750713823782,8.86984366,2362.9,2362.4,0.55]
[1750713824189,8.86984366,2362.9,2362.4,4.78296556]
[1750713824392,7.86,2362.9,2362.4,4.78296556]
[1750713824582,7.86,2362.9,2362.6,0.55]
[1750713826294,7.86,2362.9,2362.4,4.78290649]
[1750713826792,7.86,2362.9,2362.4,0.55]
[1750713828878,7.86,2362.9,2362.3,0.55]
[1750713828879,8.86984366,2362.9,2362.3,0.55]
[1750713829071,7.86,2362.9,2362.3,0.55]
[1750713829275,8.87429555,2362.9,2362.3,0.55]
[1750713829474,7.86,2362.9,2362.3,0.55]
[1750713829775,11.01429555,2362.8,2362.3,0.55]
[1750713829972,1.01429555,2362.7,2362.3,0.55]
[1750713834688,1.01429555,2362.8,2362.5,0.55]
[1750713834920,8.87429555,2362.9,2362.5,0.55]
[1750713835229,7.86,2362.9,2362.5,0.55]
[1750713835422,7.86,2362.9,2362.5,1.02829681]
[1750713841154,8.87429555,2363.0,2362.5,1.02829681]
[1750713841848,8.87429555,2363.0,2362.3,4.78309177]
[1750713842026,8.87429555,2363.0,2362.4,4.23295029]
[1750713842215,8.87429555,2363.0,2362.3,4.78310388]
[1750713842611,7.86,2363.0,2362.4,4.2329668]
[1750713843048,7.86,2363.0,2362.3,4.78305717]
[1750713843211,7.86,2363.0,2362.4,0.98357219]
[1750713843623,8.87429555,2363.0,2362.5,0.55]
[1750713844126,8.87429555,2363.0,2362.3,0.55]
[1750713844352,7.86,2363.0,2362.3,0.55]
[1750713844729,7.86,2363.0,2362.2,5.05273709]
[1750713844730,7.86,2363.0,2362.2,0.8194]
[1750713845462,7.86,2363.0,2362.3,0.55]
[1750713845660,9.45361,2363.0,2362.3,0.55]
[1750713846062,15.115,2363.0,2362.5,0.55]
[1750713846233,15.115,2363.0,2362.3,0.55]
[1750713846653,15.115,2363.0,2362.3,4.78313871]
[1750713847866,15.115,2363.0,2362.3,0.55]
[1750713848369,15.115,2363.0,2362.3,4.78315128]
[1750713848574,15.115,2363.0,2362.3,6.76675064]
[1750713848868,15.115,2363.0,2362.3,2.53359936]
[1750713850791,10.0,2362.9,2362.3,0.55]
[1750713850977,10.7933,2362.9,2362.1,0.55]
[1750713851950,0.7788,2362.8,2361.7,7.06452136]
[1750713852382,0.7788,2362.8,2361.8,0.55]
[1750713853287,0.7788,2362.8,2361.5,0.8323]
[1750713853288,0.7788,2362.5,2361.5,0.8323]
[1750713853503,0.7788,2362.3,2361.3,15.06724553]
[1750713853899,0.7788,2362.3,2361.4,0.55]
[1750713854194,0.7788,2362.3,2361.3,15.06724553]
[1750713855057,0.7788,2362.3,2361.4,4.78475869]
[1750713855362,1.58168,2362.3,2361.4,7.16106757]
[1750713858004,1.58168,2362.3,2361.6,0.55]
[1750713858306,0.8079,2362.6,2362.3,4.23315903]
[1750713858489,7.86,2362.8,2362.4,4.78296911]
[1750713858490,8.6752,2362.8,2362.4,4.78296911]
[1750713858883,7.86,2362.8,2362.4,4.78296911]
[1750713859083,7.86,2362.8,2362.4,0.55]
[1750713859284,7.86,2362.8,2362.5,4.23272968]
[1750713859619,7.86,2362.8,2362.4,1.02830822]
[1750713859774,2.06338754,2364.5,2362.4,1.02830822]
[1750713859775,7.86,2363.5,2363.1,0.55]
[1750713860100,8.6839,2363.7,2363.1,0.55]
[1750713860291,8.6839,2363.7,2363.0,4.78186013]
[1750713860486,8.6839,2363.7,2363.0,5.96416495]
[1750713860665,10.0,2363.6,2363.0,1.73230482]
[1750713860869,10.0,2363.6,2363.0,5.96416691]
[1750713861070,10.0,2363.6,2363.0,1.73230482]
[1750713861572,10.0,2363.6,2363.0,5.96419903]
[1750713861769,8.6839,2363.7,2363.1,1.1007409]
[1750713863617,8.6839,2363.7,2363.2,0.55]
[1750713869251,8.6839,2363.7,2362.9,5.04328533]
[1750713869252,8.6839,2363.7,2363.1,0.55]
[1750713870758,8.6839,2363.7,2363.1,4.78172675]
[1750713870997,7.86,2363.7,2363.2,5.04655951]
[1750713871159,7.86,2363.7,2363.4,0.55]
[1750713874811,17.86,2363.9,2363.2,0.8151]
[1750713874981,17.86,2363.9,2363.3,0.55]
[1750713875509,7.86,2363.9,2363.3,0.55]
[1750713875665,0.8295,2363.8,2363.0,0.8144]
[1750713876093,2.42165,2363.8,2363.0,2.31905678]
[1750713876524,0.7656,2363.6,2362.2,4.23321115]
[1750713876799,13.57615,2363.8,2361.7,4.23421618]
[1750713876800,0.7656,2363.3,2362.3,0.8237]
[1750713877001,1.984,2363.2,2362.3,0.8237]
[1750713877200,0.7656,2362.9,2362.3,0.8237]
[1750713877698,0.7656,2362.9,2362.2,0.55]
[1750713877866,2.56526,2362.9,2362.1,0.8237]
[1750713878067,2.56526,2362.9,2362.2,0.55]
[1750713878068,0.7656,2362.9,2362.2,0.55]
[1750713878303,17.231,2363.0,2362.4,0.55]
[1750713878507,10.0,2363.0,2362.4,0.55]
[1750713878713,10.0,2363.0,2362.3,0.55]
[1750713879498,7.9956,2363.1,2362.3,4.78316154]
[1750713879803,10.7656,2363.1,2362.5,0.55]
[1750713881404,10.7656,2363.1,2362.6,0.8097]
[1750713881405,0.7656,2363.1,2362.6,0.8097]
[1750713883117,17.86,2363.6,2362.7,0.55]
[1750713883118,0.7806,2363.3,2362.7,0.55]
[1750713883409,10.7806,2363.3,2362.7,0.55]
[1750713884982,10.0,2363.3,2362.7,0.55]
[1750713885179,11.01043801,2363.3,2362.7,0.55]
[1750713885405,7.227,2363.4,2362.7,1.53251052]
[1750713885596,1.83387878,2363.5,2362.7,1.53251052]
[1750713885801,11.83387878,2363.5,2362.7,1.53251052]
[1750713886122,1.01097878,2363.4,2362.7,1.53251052]
[1750713886292,3.70296666,2363.4,2362.7,1.53251052]
[1750713886880,0.7839,2363.3,2362.5,4.78280209]
[1750713889513,1.79487878,2363.3,2362.5,0.55]
[1750713889842,1.79487878,2363.3,2362.5,4.78277915]
[1750713891997,0.7839,2363.3,2362.7,0.55]
[1750713892315,1.79487878,2363.3,2362.7,0.55]
[1750713892520,2.6329683,2363.3,2362.7,0.55]
[1750713895999,1.62198952,2363.3,2362.7,0.55]
[1750713896402,2.6329683,2363.3,2362.7,0.55]
[1750713897113,1.62198952,2363.3,2362.7,0.55]
[1750713897417,2.6329683,2363.3,2362.7,0.55]
[1750713898731,1.7937724,2363.3,2362.7,1.10743598]
[1750713899112,1.01097878,2363.3,2362.7,1.10743598]
[1750713900440,1.01097878,2363.3,2363.1,0.55]
[1750713900739,1.01298474,2364.2,2363.7,0.55]
[1750713900915,2.06338754,2364.5,2363.9,0.55]
[1750713901236,2.06338754,2364.5,2364.3,0.55]
[1750713903638,2.06338754,2364.5,2364.4,4.7794028]
[1750713903836,2.06338754,2364.5,2364.4,5.76200367]
[1750713904543,2.06338754,2364.5,2364.4,1.53260087]
[1750713904744,2.06338754,2364.5,2364.4,0.55]
[1750713906949,2.06338754,2364.5,2364.4,5.5499028]
[1750713907249,2.06338754,2364.5,2364.4,1.3205]
[1750713907447,2.06338754,2364.5,2364.4,5.5499028]
[1750713908147,2.06338754,2364.5,2364.4,1.3205]
[1750713908346,2.06338754,2364.5,2364.4,2.49557542]
[1750713910159,2.06338754,2364.5,2364.4,1.3205]
[1750713910960,2.06338754,2364.5,2364.2,4.22976059]
[1750713911198,2.06338754,2364.5,2364.3,4.22943739]
[1750713911471,10.0,2365.0,2364.4,0.55]
[1750713911972,10.0,2365.0,2364.2,4.22976059]
[1750713911973,10.0,2365.0,2364.2,4.77969215]
[1750713912171,10.0,2365.0,2364.3,5.20749881]
[1750713912383,10.0,2365.0,2364.4,0.55]
[1750713912743,7.86,2365.1,2364.4,0.55]
[1750713917774,7.86,2365.1,2364.3,0.55]
[1750713918482,10.0,2365.0,2364.2,0.55]
[1750713918692,11.06045,2365.0,2364.1,0.7705]
[1750713918987,11.06045,2365.0,2364.2,0.55]
[1750713919192,11.06045,2365.0,2364.1,0.7705]
[1750713919385,0.7531,2364.9,2364.2,0.55]
[1750713919690,1.181355,2364.8,2364.2,0.55]
[1750713920666,0.7531,2364.6,2363.6,15.04072851]
[1750713920863,0.7531,2364.6,2363.6,0.81]
[1750713920864,7.86,2364.5,2363.6,0.81]
[1750713921079,7.86,2364.5,2363.7,0.55]
[1750713921466,7.86,2364.5,2363.6,0.81]
[1750713921666,7.86,2364.5,2363.4,0.81]
[1750713921667,1.61441,2364.4,2363.4,0.81]
[1750713921993,1.61441,2364.4,2363.5,0.55]
[1750713922498,0.7531,2364.1,2363.0,0.81]
[1750713922700,0.7531,2364.1,2362.8,12.139]
[1750713922701,0.7531,2363.8,2362.8,0.81]
[1750713922858,1.7602031,2363.8,2362.8,0.81]
[1750713923059,0.7531,2363.6,2362.8,0.81]
[1750713923290,8.6131,2363.6,2362.8,0.81]
[1750713923477,1.97,2363.5,2362.5,10.7852]
[1750713923794,19.83,2363.5,2362.5,0.7852]
[1750713923993,0.767,2363.4,2362.5,0.7852]
[1750713924198,1.90354209,2363.3,2362.5,1.78042]
[1750713924408,11.90354209,2363.3,2362.1,0.8305]
[1750713924772,11.7614936,2363.2,2362.1,0.8305]
[1750713925088,0.7542,2363.2,2362.2,0.55]
[1750713925972,0.7542,2363.2,2362.1,0.8305]
[1750713926179,0.7542,2363.2,2362.2,0.55]
[1750713926387,0.36650593,2363.1,2362.2,1.68805]
[1750713926565,1.959,2363.0,2362.2,1.68805]
[1750713926762,0.7555,2362.5,2360.8,0.7901]
[1750713926977,10.0,2362.2,2360.8,0.7901]
[1750713927179,10.8192,2362.0,2360.8,0.7901]
[1750713927389,10.0,2361.8,2360.8,0.7901]
[1750713927574,1.29663172,2361.7,2360.8,1.86911]
[1750713927769,1.29663172,2361.7,2360.8,0.7901]
[1750713928567,0.7976,2361.6,2360.5,10.8108]
[1750713929281,0.7976,2361.6,2360.6,0.55]
[1750713929489,0.7976,2361.6,2360.5,10.8108]
[1750713930070,0.7976,2361.6,2360.6,0.55]
[1750713930868,0.7976,2361.6,2360.4,0.55]
[1750713931168,0.7976,2361.6,2360.6,0.55]
[1750713933287,10.0,2361.4,2360.5,0.55]
[1750713933490,1.96,2361.3,2360.5,0.55]
[1750713934310,0.7976,2361.6,2360.5,4.78638802]
[1750713934514,10.0,2361.5,2360.9,0.55]
[1750713934901,0.7976,2361.6,2360.9,0.55]
[1750713935310,3.11509002,2361.6,2360.9,0.55]
[1750713936217,2.93381649,2361.9,2360.9,4.78560018]
[1750713936527,11.96,2361.8,2361.1,0.55]
[1750713936683,10.0,2361.8,2361.1,0.55]
[1750713936883,10.0,2361.8,2360.9,4.2355681]
[1750713936884,11.96,2361.8,2360.9,4.7855735]
[1750713937129,14.16918165,2361.8,2360.9,5.76654783]
[1750713937925,14.16918165,2361.8,2361.1,0.55]
[1750713940438,12.20918165,2361.8,2361.0,4.78546865]
[1750713940755,2.12631649,2361.9,2361.6,0.55]
[1750713940921,2.12631649,2361.9,2361.8,5.59415876]
[1750713941632,2.12631649,2361.9,2361.8,15.59415876]
[1750713943920,2.12631649,2361.9,2361.8,16.02377871]
[1750713944150,7.86,2363.0,2362.1,4.23344317]
[1750713944329,20.18650593,2363.1,2362.3,0.55]
[1750713947706,18.22650593,2363.1,2362.3,0.55]
[1750713947907,20.18650593,2363.1,2362.3,0.55]
[1750713950533,20.18650593,2363.1,2362.2,0.7553]
[1750713950742,3.83050059,2363.0,2362.2,0.7553]
[1750713951246,3.83050059,2363.0,2361.9,14.78380201]
[1750713951247,0.8147,2362.9,2361.9,0.8283]
[1750713951635,0.7748,2362.6,2361.6,0.8065]
[1750713951839,17.012,2362.5,2361.6,0.8065]
[1750713952554,1.00827717,2362.4,2361.6,0.8065]
[1750713952860,0.92522088,2362.3,2361.6,0.8065]
[1750713955461,0.92522088,2362.3,2361.6,5.04091522]
[1750713956363,0.92522088,2362.3,2361.7,4.2342342]
[1750713956562,8.78522088,2362.3,2361.7,4.2342342]
[1750713956968,7.86,2362.3,2361.9,4.23385933]
[1750713957163,7.86,2362.3,2362.0,4.23366787]
[1750713958186,7.86,2362.3,2361.9,4.23379169]
[1750713958582,7.86,2362.3,2362.0,0.7857]
[1750713959084,7.86,2362.3,2362.1,0.55]
[1750713959260,8.6348,2362.6,2362.1,0.55]
[1750713959682,8.6348,2362.6,2362.1,4.78346531]
[1750713960262,7.86,2362.6,2362.1,5.76373064]
[1750713960490,7.86,2362.6,2362.4,0.55]
[1750713960788,9.813,2363.0,2362.4,4.78293098]
[1750713961279,7.86,2363.0,2362.4,4.78293098]
[1750713961484,7.86,2363.0,2362.4,5.01860578]
[1750713961862,10.65653,2363.0,2362.4,0.7857]
[1750713963885,10.65653,2363.0,2361.6,4.23438238]
[1750713963886,0.7903,2362.8,2361.8,0.7857]
[1750713964072,0.7903,2362.6,2361.8,4.23403808]
[1750713964271,1.953,2362.5,2361.8,4.23403808]
[1750713964479,0.37532999,2362.4,2361.8,4.23403808]
[1750713965159,0.37532999,2362.4,2361.7,0.55]
[1750713965593,0.37532999,2362.4,2361.7,10.55]
[1750713966870,0.37532999,2362.4,2361.3,7.61452646]
[1750713966871,0.7633,2362.3,2361.3,5.02250791]
[1750713967069,9.63329989,2362.3,2361.4,0.55]
[1750713967268,1.00086299,2362.2,2361.4,0.55]
[1750713967474,1.00086299,2362.2,2361.4,0.3]
[1750713967688,2.01086288,2362.2,2361.4,0.3]
[1750713968306,0.7633,2362.0,2361.4,0.3]
[1750713968604,3.72629989,2362.0,2361.4,0.3]
[1750713968770,3.66580442,2362.0,2361.4,0.3]
[1750713969595,3.66580442,2362.0,2361.1,10.7876]
[1750713969596,8.86999989,2361.9,2361.1,10.7876]
[1750713969768,8.86999989,2361.9,2361.2,0.55]
[1750713969964,8.86999989,2361.9,2361.1,15.02290573]
[1750713970285,8.86999989,2361.9,2361.2,0.55]
[1750713970472,10.12358032,2361.9,2361.2,0.55]
[1750713972997,10.12358032,2361.9,2360.9,2.93397433]
[1750713973194,0.7718,2361.8,2360.9,2.93397433]
[1750713973359,7.86,2361.7,2360.9,7.16964677]
[1750713973555,7.86,2361.7,2360.9,2.93397433]
[1750713973772,8.94953803,2361.7,2360.9,2.93397433]
[1750713974472,8.94953803,2361.7,2360.9,2.68397433]
[1750713974899,10.7718,2361.6,2359.9,0.2226823]
[1750713975198,0.7704,2360.8,2359.9,4.46014058]
[1750713975401,0.7704,2360.6,2359.9,0.2226823]
[1750713975992,1.19479013,2360.6,2359.9,0.2226823]
[1750713977195,2.50210894,2360.6,2359.9,0.2226823]
[1750713977395,1.26481088,2360.5,2359.9,0.2226823]
[1750713980100,9.12481088,2360.5,2359.9,0.2226823]
[1750713987013,17.86,2360.4,2359.9,0.2226823]
[1750713987212,10.7963,2360.1,2359.9,0.2226823]
[1750713987544,27.7933,2360.0,2359.9,0.2226823]
[1750713987735,30.5945457,2360.0,2359.9,0.2226823]
[1750713989557,31.59825013,2360.0,2359.9,0.2226823]
[1750713990443,30.5945457,2360.0,2359.9,0.2226823]
[1750713991327,31.59817638,2360.0,2359.9,0.2226823]
[1750713993827,33.34844533,2360.0,2359.9,0.2226823]
[1750713994047,33.34844533,2360.0,2358.6,0.7867]
[1750713994048,10.7846,2359.9,2358.7,0.55]
[1750713994246,10.7846,2359.6,2358.7,0.55]
[1750713994487,9.139,2359.5,2358.6,0.7867]
[1750713995543,10.14388643,2359.5,2358.6,0.7867]
[1750713995970,0.7993,2359.4,2358.4,0.8087]
[1750713996356,10.0,2359.2,2358.4,0.8087]
[1750713996560,0.7887,2358.4,2357.5,0.2226823]
[1750713996760,10.0,2358.2,2357.5,0.2226823]
[1750713997144,15.22922187,2358.1,2357.5,0.2226823]
[1750713997347,18.19186846,2358.0,2357.5,0.2226823]
[1750713997586,1.00286846,2357.9,2357.5,0.2226823]
[1750713997783,10.0,2357.7,2357.5,0.2226823]
[1750713998150,0.7887,2357.6,2357.5,0.2226823]
[1750713998542,14.44052187,2358.1,2357.5,0.2226823]
[1750713998543,1.25077274,2358.3,2357.5,0.9956823]
[1750713998861,8.77467565,2358.6,2357.9,0.773]
[1750713999049,8.77467565,2358.6,2358.1,0.55]
[1750713999249,8.77467565,2358.6,2358.0,0.55642344]
[1750713999250,10.0,2358.5,2358.0,0.55]
[1750713999580,10.0,2358.5,2358.0,0.3]
[1750714000156,10.0,2358.5,2357.9,0.773]
[1750714001242,0.7749,2358.4,2357.6,0.8173]
[1750714001562,3.07132221,2358.3,2357.6,0.5673]
[1750714001758,7.19,2358.2,2357.6,0.5673]
[1750714002156,10.0,2358.1,2357.6,0.5673]
[1750714002396,10.0,2358.1,2357.5,0.2226823]
[1750714002727,11.00254999,2358.1,2357.5,0.2226823]
[1750714002852,1.819255,2358.0,2357.5,0.2226823]
[1750714003062,0.8259,2357.9,2357.5,0.2226823]
[1750714003394,10.0,2357.7,2357.5,0.2226823]